[Event "Titled Tuesday Blitz August 22 Late 2023"]
[White "Ardito, Andrew"]
[Black "D`Arruda, Ricardo D."]
[WhiteFideId "2033976"]
[BlackFideId "100692"]
[WhiteElo "2120"]
[BlackElo "2540"]
[Result "0-1"]
[Round "1"]
[TimeControl "180+1"]
[Date "2023.08.22"]
[WhiteClock "0:00:00"]
[BlackClock "0:00:40"]
[Board "205"]

1. Nf3 {[%clk 0:03:00]}  d5 {[%clk 0:02:58]} 2. g3 {[%clk 0:02:59]}  Nf6 {[%clk 0:02:56]} 3. d3 {[%clk 0:02:58]}  Nc6 {[%clk 0:02:55]} 4. Bg2 {[%clk 0:02:55]}  e5 {[%clk 0:02:55]} 5. O-O {[%clk 0:02:53]}  Be7 {[%clk 0:02:55]} 6. Nbd2 {[%clk 0:02:50]}  O-O {[%clk 0:02:54]} 7. e4 {[%clk 0:02:48]}  Be6 {[%clk 0:02:53]} 8. c3 {[%clk 0:02:41]}  h6 {[%clk 0:02:50]} 9. b4 {[%clk 0:02:40]}  a6 {[%clk 0:02:50]} 10. a4 {[%clk 0:02:40]}  d4 {[%clk 0:02:47]} 11. c4 {[%clk 0:02:19]}  Bxb4 {[%clk 0:02:34]} 12. Ba3 {[%clk 0:02:19]}  Bxa3 {[%clk 0:02:33]} 13. Rxa3 {[%clk 0:02:20]}  Nd7 {[%clk 0:02:33]} 14. Nb3 {[%clk 0:02:08]}  Qe7 {[%clk 0:02:32]} 15. Qa1 {[%clk 0:01:50]}  Nc5 {[%clk 0:02:31]} 16. Ne1 {[%clk 0:01:42]}  f6 {[%clk 0:02:16]} 17. f4 {[%clk 0:01:41]}  Nb4 {[%clk 0:02:08]} 18. Nxc5 {[%clk 0:01:28]}  Qxc5 {[%clk 0:02:09]} 19. Rb3 {[%clk 0:01:26]}  a5 {[%clk 0:02:08]} 20. f5 {[%clk 0:01:15]}  Bd7 {[%clk 0:02:08]} 21. Rf2 {[%clk 0:00:58]}  b6 {[%clk 0:02:08]} 22. Nc2 {[%clk 0:00:54]}  Nxc2 {[%clk 0:02:01]} 23. Rxc2 {[%clk 0:00:55]}  Be8 {[%clk 0:01:57]} 24. Qa3 {[%clk 0:00:52]}  Qxa3 {[%clk 0:01:51]} 25. Rxa3 {[%clk 0:00:53]}  c5 {[%clk 0:01:43]} 26. Rb2 {[%clk 0:00:51]}  Rb8 {[%clk 0:01:39]} 27. Bf3 {[%clk 0:00:51]}  Rf7 {[%clk 0:01:36]} 28. Bh5 {[%clk 0:00:50]}  Rfb7 {[%clk 0:01:36]} 29. Bxe8 {[%clk 0:00:49]}  Rxe8 {[%clk 0:01:36]} 30. Rab3 {[%clk 0:00:49]}  Reb8 {[%clk 0:01:36]} 31. Rb5 {[%clk 0:00:49]}  Kf7 {[%clk 0:01:37]} 32. Kg2 {[%clk 0:00:50]}  g6 {[%clk 0:01:37]} 33. Kf3 {[%clk 0:00:48]}  h5 {[%clk 0:01:37]} 34. h4 {[%clk 0:00:25]}  gxf5 {[%clk 0:01:34]} 35. exf5 {[%clk 0:00:26]}  Ke7 {[%clk 0:01:34]} 36. Ke4 {[%clk 0:00:25]}  Kd6 {[%clk 0:01:34]} 37. Rg2 {[%clk 0:00:22]}  Kc6 {[%clk 0:01:33]} 38. g4 {[%clk 0:00:21]}  hxg4 {[%clk 0:01:31]} 39. Rxg4 {[%clk 0:00:21]}  Rh7 {[%clk 0:01:31]} 40. Rb2 {[%clk 0:00:16]}  Rbh8 {[%clk 0:01:30]} 41. Rh2 {[%clk 0:00:16]}  Kd6 {[%clk 0:01:26]} 42. Kf3 {[%clk 0:00:14]}  Ke7 {[%clk 0:01:24]} 43. Kg3 {[%clk 0:00:12]}  Kf7 {[%clk 0:01:23]} 44. Kh3 {[%clk 0:00:11]}  Rh5 {[%clk 0:01:19]} 45. Rf2 {[%clk 0:00:10]}  Rg5 {[%clk 0:01:15]} 46. Rf3 {[%clk 0:00:05]}  Rxg4 {[%clk 0:01:14]} 47. Kxg4 {[%clk 0:00:05]}  Rg8+ {[%clk 0:01:14]} 48. Kh3 {[%clk 0:00:04]}  Rg1 {[%clk 0:01:14]} 49. Kh2 {[%clk 0:00:02]}  Ra1 {[%clk 0:01:10]} 50. Rg3 {[%clk 0:00:02]}  Rf1 {[%clk 0:00:42]} 51. h5 {[%clk 0:00:03]}  Rxf5 {[%clk 0:00:42]} 52. Rh3 {[%clk 0:00:03]}  Kg7 {[%clk 0:00:42]} 53. Kg3 {[%clk 0:00:03]}  Kh6 {[%clk 0:00:41]} 54. Rh4 {[%clk 0:00:00]}  Rxh5 {[%clk 0:00:40]} 0-1


[Site "https://www.chess.com"]

[Event "Titled Tuesday Blitz August 22 Late 2023"]
[White "Jovic, Stanoje"]
[Black "Gutierrez Espinosa, Karen"]
[WhiteFideId "905020"]
[BlackFideId "3513238"]
[WhiteElo "2537"]
[BlackElo "2116"]
[Result "1-0"]
[Round "1"]
[TimeControl "180+1"]
[Date "2023.08.22"]
[WhiteClock "0:00:41"]
[BlackClock "0:00:00"]
[Board "206"]

1. c4 {[%clk 0:03:00]}  c5 {[%clk 0:02:59]} 2. g3 {[%clk 0:03:00]}  Nf6 {[%clk 0:02:58]} 3. Bg2 {[%clk 0:03:00]}  Nc6 {[%clk 0:02:58]} 4. Nc3 {[%clk 0:03:00]}  g6 {[%clk 0:02:57]} 5. Nf3 {[%clk 0:03:00]}  Bg7 {[%clk 0:02:56]} 6. O-O {[%clk 0:03:00]}  O-O {[%clk 0:02:55]} 7. d4 {[%clk 0:03:00]}  cxd4 {[%clk 0:02:51]} 8. Nxd4 {[%clk 0:03:01]}  Nxd4 {[%clk 0:02:50]} 9. Qxd4 {[%clk 0:03:01]}  d6 {[%clk 0:02:49]} 10. Bg5 {[%clk 0:03:01]}  Be6 {[%clk 0:02:35]} 11. Qd2 {[%clk 0:03:01]}  Rb8 {[%clk 0:02:29]} 12. b3 {[%clk 0:02:59]}  a6 {[%clk 0:02:28]} 13. a4 {[%clk 0:02:48]}  Qa5 {[%clk 0:02:19]} 14. Rac1 {[%clk 0:02:32]}  b5 {[%clk 0:02:10]} 15. axb5 {[%clk 0:02:27]}  h6 {[%clk 0:01:58]} 16. Bxh6 {[%clk 0:02:14]}  axb5 {[%clk 0:01:57]} 17. Nxb5 {[%clk 0:02:10]}  Rxb5 {[%clk 0:01:54]} 18. cxb5 {[%clk 0:02:05]}  Qxb5 {[%clk 0:01:53]} 19. Bxg7 {[%clk 0:02:05]}  Kxg7 {[%clk 0:01:54]} 20. b4 {[%clk 0:01:59]}  Rb8 {[%clk 0:01:50]} 21. Rb1 {[%clk 0:01:54]}  Bc4 {[%clk 0:01:48]} 22. Bf3 {[%clk 0:01:48]}  d5 {[%clk 0:01:43]} 23. Rfd1 {[%clk 0:01:42]}  e5 {[%clk 0:01:31]} 24. e3 {[%clk 0:01:37]}  Ne4 {[%clk 0:01:17]} 25. Bxe4 {[%clk 0:01:32]}  dxe4 {[%clk 0:01:18]} 26. Qd6 {[%clk 0:01:28]}  Bd3 {[%clk 0:01:15]} 27. Rb2 {[%clk 0:01:23]}  Rb6 {[%clk 0:01:03]} 28. Qd8 {[%clk 0:01:10]}  Rf6 {[%clk 0:00:45]} 29. Rc1 {[%clk 0:00:59]}  g5 {[%clk 0:00:13]} 30. Qe7 {[%clk 0:00:51]}  g4 {[%clk 0:00:12]} 31. Qc5 {[%clk 0:00:48]}  Qa4 {[%clk 0:00:12]} 32. Qxe5 {[%clk 0:00:47]}  Qa3 {[%clk 0:00:05]} 33. b5 {[%clk 0:00:44]}  Qa4 {[%clk 0:00:00]} 34. b6 {[%clk 0:00:41]} 1-0


[Site "https://www.chess.com"]

[Event "Titled Tuesday Blitz August 22 Late 2023"]
[White "Huber, Benedikt"]
[Black "Phillips, Rene"]
[WhiteFideId "12923583"]
[BlackFideId "2056275"]
[WhiteElo "2536"]
[BlackElo "2100"]
[Result "1-0"]
[Round "1"]
[TimeControl "180+1"]
[Date "2023.08.22"]
[WhiteClock "0:00:57"]
[BlackClock "0:00:00"]
[Board "208"]

1. e4 {[%clk 0:02:55]}  Nc6 {[%clk 0:02:59]} 2. d4 {[%clk 0:02:54]}  d5 {[%clk 0:02:59]} 3. exd5 {[%clk 0:02:54]}  Qxd5 {[%clk 0:02:59]} 4. Nf3 {[%clk 0:02:55]}  Bg4 {[%clk 0:02:59]} 5. Nc3 {[%clk 0:02:53]}  Bxf3 {[%clk 0:02:58]} 6. Nxd5 {[%clk 0:02:38]}  Bxd1 {[%clk 0:02:58]} 7. Nxc7+ {[%clk 0:02:39]}  Kd8 {[%clk 0:02:58]} 8. Nxa8 {[%clk 0:02:40]}  Bg4 {[%clk 0:02:56]} 9. Bf4 {[%clk 0:02:39]}  e5 {[%clk 0:02:56]} 10. dxe5 {[%clk 0:02:35]}  Be6 {[%clk 0:02:55]} 11. O-O-O+ {[%clk 0:02:11]}  Kc8 {[%clk 0:02:55]} 12. Bb5 {[%clk 0:02:12]}  Nge7 {[%clk 0:02:54]} 13. Be3 {[%clk 0:01:58]}  Nd5 {[%clk 0:02:51]} 14. Bg5 {[%clk 0:01:25]}  Kb8 {[%clk 0:02:45]} 15. Bxc6 {[%clk 0:01:21]}  bxc6 {[%clk 0:02:45]} 16. c4 {[%clk 0:01:21]}  Nb4 {[%clk 0:02:38]} 17. Rd8+ {[%clk 0:01:20]}  Kb7 {[%clk 0:01:45]} 18. Be7 {[%clk 0:01:20]}  Bxe7 {[%clk 0:01:31]} 19. Rxh8 {[%clk 0:01:21]}  Bg5+ {[%clk 0:01:29]} 20. Kd1 {[%clk 0:01:21]}  Bg4+ {[%clk 0:01:17]} 21. f3 {[%clk 0:01:21]}  Bc8 {[%clk 0:01:17]} 22. Ke2 {[%clk 0:01:19]}  Nc2 {[%clk 0:00:58]} 23. Rd1 {[%clk 0:01:15]}  c5 {[%clk 0:00:54]} 24. Rd5 {[%clk 0:01:10]}  Nd4+ {[%clk 0:00:54]} 25. Kd3 {[%clk 0:01:10]}  Bf5+ {[%clk 0:00:53]} 26. Kc3 {[%clk 0:01:10]}  Ne2+ {[%clk 0:00:39]} 27. Kb3 {[%clk 0:01:10]}  Nd4+ {[%clk 0:00:15]} 28. Ka3 {[%clk 0:01:09]}  Nc2+ {[%clk 0:00:15]} 29. Ka4 {[%clk 0:01:09]}  Nb4 {[%clk 0:00:09]} 30. Rdd8 {[%clk 0:01:09]}  Nc6 {[%clk 0:00:07]} 31. Rdf8 {[%clk 0:01:08]}  Bd7 {[%clk 0:00:06]} 32. Kb3 {[%clk 0:00:59]}  Nd4+ {[%clk 0:00:06]} 33. Kc3 {[%clk 0:00:59]}  Ne2+ {[%clk 0:00:02]} 34. Kd3 {[%clk 0:00:57]}  Nd4 {[%clk 0:00:00]} 35. Rxf7 {[%clk 0:00:57]} 1-0


[Site "https://www.chess.com"]

[Event "Titled Tuesday Blitz August 22 Late 2023"]
[White "Zaczek, Jonathon"]
[Black "Sivakumar, Shaaketh"]
[WhiteFideId "2607123"]
[BlackFideId "30940176"]
[WhiteElo "2095"]
[BlackElo "2534"]
[Result "0-1"]
[Round "1"]
[TimeControl "180+1"]
[Date "2023.08.22"]
[WhiteClock "0:00:00"]
[BlackClock "0:00:20"]
[Board "209"]

1. e4 {[%clk 0:02:58]}  e6 {[%clk 0:03:00]} 2. d4 {[%clk 0:02:57]}  d5 {[%clk 0:02:54]} 3. Nd2 {[%clk 0:02:54]}  c5 {[%clk 0:02:53]} 4. Ngf3 {[%clk 0:02:52]}  Nc6 {[%clk 0:02:53]} 5. dxc5 {[%clk 0:02:33]}  Bxc5 {[%clk 0:02:45]} 6. Bd3 {[%clk 0:02:32]}  Nf6 {[%clk 0:02:30]} 7. e5 {[%clk 0:02:29]}  Nd7 {[%clk 0:02:23]} 8. Qe2 {[%clk 0:02:29]}  Qc7 {[%clk 0:02:17]} 9. Bb5 {[%clk 0:02:19]}  O-O {[%clk 0:02:15]} 10. Bxc6 {[%clk 0:02:19]}  bxc6 {[%clk 0:02:13]} 11. O-O {[%clk 0:02:19]}  a5 {[%clk 0:02:13]} 12. a4 {[%clk 0:02:19]}  Ba6 {[%clk 0:02:12]} 13. c4 {[%clk 0:02:19]}  Nb6 {[%clk 0:02:13]} 14. b3 {[%clk 0:02:18]}  dxc4 {[%clk 0:02:12]} 15. Nxc4 {[%clk 0:02:18]}  Rfd8 {[%clk 0:02:13]} 16. Bb2 {[%clk 0:02:16]}  Nxc4 {[%clk 0:02:12]} 17. bxc4 {[%clk 0:02:15]}  Rab8 {[%clk 0:02:13]} 18. Rfd1 {[%clk 0:01:56]}  Rxd1+ {[%clk 0:02:07]} 19. Rxd1 {[%clk 0:01:57]}  h6 {[%clk 0:02:03]} 20. Bc3 {[%clk 0:01:57]}  Bb4 {[%clk 0:02:02]} 21. Ba1 {[%clk 0:01:49]}  c5 {[%clk 0:01:53]} 22. Nd2 {[%clk 0:01:23]}  Bb7 {[%clk 0:01:51]} 23. Ne4 {[%clk 0:01:18]}  Qc6 {[%clk 0:01:51]} 24. f3 {[%clk 0:01:17]}  Qxa4 {[%clk 0:01:50]} 25. Nd6 {[%clk 0:01:09]}  Bc6 {[%clk 0:01:48]} 26. Rb1 {[%clk 0:00:52]}  Qa3 {[%clk 0:01:41]} 27. f4 {[%clk 0:00:46]}  a4 {[%clk 0:01:37]} 28. f5 {[%clk 0:00:46]}  exf5 {[%clk 0:01:36]} 29. Nxf5 {[%clk 0:00:46]}  Bd7 {[%clk 0:01:29]} 30. e6 {[%clk 0:00:41]}  Bxe6 {[%clk 0:01:28]} 31. Nxg7 {[%clk 0:00:41]}  Re8 {[%clk 0:01:20]} 32. Nxe8 {[%clk 0:00:33]}  Bf5 {[%clk 0:01:12]} 33. Qe5 {[%clk 0:00:28]}  Kf8 {[%clk 0:01:08]} 34. Nd6 {[%clk 0:00:25]}  Be6 {[%clk 0:01:03]} 35. Nf5 {[%clk 0:00:11]}  Bxf5 {[%clk 0:00:44]} 36. Qxf5 {[%clk 0:00:04]}  Qe3+ {[%clk 0:00:44]} 37. Kh1 {[%clk 0:00:04]}  a3 {[%clk 0:00:43]} 38. Rf1 {[%clk 0:00:04]}  Qe7 {[%clk 0:00:39]} 39. Qh7 {[%clk 0:00:02]}  Qe6 {[%clk 0:00:37]} 40. Qh8+ {[%clk 0:00:02]}  Ke7 {[%clk 0:00:37]} 41. Qb8 {[%clk 0:00:02]}  Qxc4 {[%clk 0:00:27]} 42. Qc7+ {[%clk 0:00:02]}  Ke8 {[%clk 0:00:25]} 43. Qc8+ {[%clk 0:00:02]}  Ke7 {[%clk 0:00:26]} 44. Bf6+ {[%clk 0:00:01]}  Kd6 {[%clk 0:00:25]} 45. Qd8+ {[%clk 0:00:01]}  Kc6 {[%clk 0:00:25]} 46. Rd1 {[%clk 0:00:02]}  Qe6 {[%clk 0:00:23]} 47. Qe7 {[%clk 0:00:00]}  Qg4 {[%clk 0:00:20]} 0-1


[Site "https://www.chess.com"]

[Event "Titled Tuesday Blitz August 22 Late 2023"]
[White "Keleberda, Tymur"]
[Black "Joubert, Dantelle"]
[WhiteFideId "14174294"]
[BlackFideId "14310813"]
[WhiteElo "2532"]
[BlackElo "2068"]
[Result "1-0"]
[Round "1"]
[TimeControl "180+1"]
[Date "2023.08.22"]
[WhiteClock "0:00:13"]
[BlackClock "0:00:20"]
[Board "212"]

1. d4 {[%clk 0:02:57]}  d5 {[%clk 0:02:59]} 2. c4 {[%clk 0:02:56]}  e6 {[%clk 0:02:58]} 3. Nc3 {[%clk 0:02:55]}  Nf6 {[%clk 0:02:58]} 4. Bg5 {[%clk 0:02:53]}  Be7 {[%clk 0:02:58]} 5. cxd5 {[%clk 0:02:47]}  Nxd5 {[%clk 0:02:56]} 6. Bxe7 {[%clk 0:02:47]}  Qxe7 {[%clk 0:02:57]} 7. Nf3 {[%clk 0:02:44]}  O-O {[%clk 0:02:55]} 8. e4 {[%clk 0:02:44]}  Nxc3 {[%clk 0:02:54]} 9. bxc3 {[%clk 0:02:45]}  c5 {[%clk 0:02:54]} 10. Bd3 {[%clk 0:02:44]}  cxd4 {[%clk 0:02:48]} 11. cxd4 {[%clk 0:02:45]}  Qb4+ {[%clk 0:02:48]} 12. Kf1 {[%clk 0:02:43]}  h6 {[%clk 0:02:45]} 13. Rb1 {[%clk 0:02:37]}  Qe7 {[%clk 0:02:43]} 14. g3 {[%clk 0:02:25]}  Nc6 {[%clk 0:02:39]} 15. Kg2 {[%clk 0:02:25]}  Rd8 {[%clk 0:02:36]} 16. Bc2 {[%clk 0:02:00]}  b6 {[%clk 0:02:32]} 17. Re1 {[%clk 0:01:47]}  Bb7 {[%clk 0:02:30]} 18. Qd2 {[%clk 0:01:18]}  Rac8 {[%clk 0:02:26]} 19. Rbd1 {[%clk 0:01:17]}  Qb4 {[%clk 0:02:23]} 20. d5 {[%clk 0:01:13]}  Qxd2 {[%clk 0:02:19]} 21. Rxd2 {[%clk 0:01:12]}  Nb4 {[%clk 0:02:14]} 22. Bb3 {[%clk 0:01:09]}  exd5 {[%clk 0:02:14]} 23. Red1 {[%clk 0:00:56]}  Rc5 {[%clk 0:01:51]} 24. a3 {[%clk 0:00:49]}  Rc3 {[%clk 0:01:39]} 25. Rb1 {[%clk 0:00:38]}  Rxf3 {[%clk 0:01:14]} 26. Kxf3 {[%clk 0:00:26]}  dxe4+ {[%clk 0:01:13]} 27. Ke3 {[%clk 0:00:26]}  Nd5+ {[%clk 0:01:01]} 28. Bxd5 {[%clk 0:00:26]}  Rxd5 {[%clk 0:00:58]} 29. Rxd5 {[%clk 0:00:25]}  Bxd5 {[%clk 0:00:58]} 30. Rd1 {[%clk 0:00:26]}  Bc6 {[%clk 0:00:52]} 31. Rd6 {[%clk 0:00:26]}  Bb5 {[%clk 0:00:49]} 32. Rd8+ {[%clk 0:00:25]}  Kh7 {[%clk 0:00:48]} 33. Kxe4 {[%clk 0:00:26]}  Kg6 {[%clk 0:00:45]} 34. f4 {[%clk 0:00:24]}  Bc6+ {[%clk 0:00:44]} 35. Ke5 {[%clk 0:00:23]}  f6+ {[%clk 0:00:43]} 36. Kd6 {[%clk 0:00:23]}  Bf3 {[%clk 0:00:42]} 37. Rd7 {[%clk 0:00:22]}  a5 {[%clk 0:00:42]} 38. Ra7 {[%clk 0:00:21]}  Be2 {[%clk 0:00:33]} 39. Kc6 {[%clk 0:00:19]}  b5 {[%clk 0:00:29]} 40. Rxa5 {[%clk 0:00:20]}  Kf5 {[%clk 0:00:29]} 41. a4 {[%clk 0:00:20]}  Kg4 {[%clk 0:00:28]} 42. axb5 {[%clk 0:00:20]}  Kh3 {[%clk 0:00:28]} 43. Ra2 {[%clk 0:00:20]}  Bf3+ {[%clk 0:00:27]} 44. Kc7 {[%clk 0:00:20]}  Bg2 {[%clk 0:00:26]} 45. b6 {[%clk 0:00:19]}  Kxh2 {[%clk 0:00:26]} 46. Rxg2+ {[%clk 0:00:20]}  Kxg2 {[%clk 0:00:25]} 47. b7 {[%clk 0:00:21]}  Kxg3 {[%clk 0:00:26]} 48. b8=Q {[%clk 0:00:22]}  h5 {[%clk 0:00:26]} 49. Qh8 {[%clk 0:00:21]}  g5 {[%clk 0:00:25]} 50. f5 {[%clk 0:00:20]}  h4 {[%clk 0:00:24]} 51. Qxf6 {[%clk 0:00:20]}  g4 {[%clk 0:00:23]} 52. Qe5+ {[%clk 0:00:20]}  Kg2 {[%clk 0:00:23]} 53. Qf4 {[%clk 0:00:20]}  Kh3 {[%clk 0:00:21]} 54. f6 {[%clk 0:00:20]}  g3 {[%clk 0:00:22]} 55. f7 {[%clk 0:00:13]}  g2 {[%clk 0:00:22]} 56. Qf3+ {[%clk 0:00:12]}  Kh2 {[%clk 0:00:22]} 57. Qf2 {[%clk 0:00:12]}  Kh1 {[%clk 0:00:21]} 58. f8=Q {[%clk 0:00:12]}  h3 {[%clk 0:00:21]} 59. Q8f3 {[%clk 0:00:11]}  Kh2 {[%clk 0:00:20]} 60. Q3g3+ {[%clk 0:00:12]}  Kh1 {[%clk 0:00:20]} 61. Qxh3# {[%clk 0:00:13]} 1-0


[Site "https://www.chess.com"]

[Event "Titled Tuesday Blitz August 22 Late 2023"]
[White "Navyblue1"]
[Black "Ansh M Shah"]
[BlackFideId "25033379"]
[WhiteElo "2024"]
[BlackElo "2532"]
[Result "0-1"]
[Round "1"]
[TimeControl "180+1"]
[Date "2023.08.22"]
[WhiteClock "0:00:08"]
[BlackClock "0:00:12"]
[Board "213"]

1. d4 {[%clk 0:02:57]}  Nf6 {[%clk 0:02:58]} 2. c4 {[%clk 0:02:55]}  e6 {[%clk 0:02:58]} 3. Nc3 {[%clk 0:02:52]}  c5 {[%clk 0:02:59]} 4. d5 {[%clk 0:02:49]}  exd5 {[%clk 0:03:00]} 5. cxd5 {[%clk 0:02:50]}  d6 {[%clk 0:03:01]} 6. e4 {[%clk 0:02:50]}  g6 {[%clk 0:03:01]} 7. Be2 {[%clk 0:02:48]}  Bg7 {[%clk 0:03:00]} 8. Nf3 {[%clk 0:02:49]}  Bg4 {[%clk 0:02:59]} 9. Nd2 {[%clk 0:02:30]}  Bxe2 {[%clk 0:02:58]} 10. Qxe2 {[%clk 0:02:31]}  O-O {[%clk 0:02:58]} 11. O-O {[%clk 0:02:31]}  Nbd7 {[%clk 0:02:57]} 12. Nc4 {[%clk 0:02:31]}  Nb6 {[%clk 0:02:54]} 13. Re1 {[%clk 0:02:11]}  Re8 {[%clk 0:02:45]} 14. Nxb6 {[%clk 0:01:48]}  Qxb6 {[%clk 0:02:43]} 15. Qc4 {[%clk 0:01:44]}  a6 {[%clk 0:02:40]} 16. f3 {[%clk 0:01:18]}  Nd7 {[%clk 0:02:26]} 17. Qe2 {[%clk 0:01:04]}  Qc7 {[%clk 0:02:05]} 18. a4 {[%clk 0:00:57]}  Rab8 {[%clk 0:01:40]} 19. a5 {[%clk 0:00:51]}  Bd4+ {[%clk 0:01:15]} 20. Be3 {[%clk 0:00:48]}  Bxe3+ {[%clk 0:01:15]} 21. Qxe3 {[%clk 0:00:47]}  b5 {[%clk 0:01:13]} 22. axb6 {[%clk 0:00:44]}  Rxb6 {[%clk 0:01:10]} 23. Re2 {[%clk 0:00:40]}  Reb8 {[%clk 0:01:08]} 24. Ra2 {[%clk 0:00:30]}  Ne5 {[%clk 0:01:01]} 25. f4 {[%clk 0:00:20]}  Nc4 {[%clk 0:00:57]} 26. Qc1 {[%clk 0:00:20]}  Rb4 {[%clk 0:00:50]} 27. h3 {[%clk 0:00:19]}  Na5 {[%clk 0:00:38]} 28. Kh2 {[%clk 0:00:17]}  Nb3 {[%clk 0:00:38]} 29. Qc2 {[%clk 0:00:17]}  Nd4 {[%clk 0:00:39]} 30. Qd3 {[%clk 0:00:17]}  Nxe2 {[%clk 0:00:38]} 31. Qxe2 {[%clk 0:00:18]}  Qb6 {[%clk 0:00:34]} 32. Rxa6 {[%clk 0:00:17]}  Qb7 {[%clk 0:00:28]} 33. Ra2 {[%clk 0:00:17]}  Rxb2 {[%clk 0:00:28]} 34. Rxb2 {[%clk 0:00:18]}  Qxb2 {[%clk 0:00:29]} 35. Qxb2 {[%clk 0:00:18]}  Rxb2 {[%clk 0:00:30]} 36. e5 {[%clk 0:00:18]}  dxe5 {[%clk 0:00:25]} 37. fxe5 {[%clk 0:00:19]}  Kf8 {[%clk 0:00:25]} 38. d6 {[%clk 0:00:19]}  Ke8 {[%clk 0:00:24]} 39. Ne4 {[%clk 0:00:19]}  Kd7 {[%clk 0:00:23]} 40. Nxc5+ {[%clk 0:00:19]}  Kd8 {[%clk 0:00:23]} 41. Ne4 {[%clk 0:00:19]}  h5 {[%clk 0:00:20]} 42. Ng5 {[%clk 0:00:18]}  Ke8 {[%clk 0:00:18]} 43. h4 {[%clk 0:00:16]}  Re2 {[%clk 0:00:17]} 44. Nf3 {[%clk 0:00:16]}  Kd7 {[%clk 0:00:17]} 45. Kg3 {[%clk 0:00:16]}  Ra2 {[%clk 0:00:16]} 46. Kh3 {[%clk 0:00:16]}  f6 {[%clk 0:00:16]} 47. exf6 {[%clk 0:00:15]}  Kxd6 {[%clk 0:00:17]} 48. Kg3 {[%clk 0:00:15]}  Ke6 {[%clk 0:00:17]} 49. f7 {[%clk 0:00:15]}  Kxf7 {[%clk 0:00:17]} 50. Ng5+ {[%clk 0:00:15]}  Kf6 {[%clk 0:00:18]} 51. Nf3 {[%clk 0:00:16]}  Kf5 {[%clk 0:00:18]} 52. Nd4+ {[%clk 0:00:16]}  Kf6 {[%clk 0:00:18]} 53. Nf3 {[%clk 0:00:16]}  Ra3 {[%clk 0:00:18]} 54. Kh2 {[%clk 0:00:15]}  Kf5 {[%clk 0:00:19]} 55. Kg3 {[%clk 0:00:15]}  Rc3 {[%clk 0:00:16]} 56. Kf2 {[%clk 0:00:15]}  Kg4 {[%clk 0:00:16]} 57. Ne5+ {[%clk 0:00:14]}  Kf5 {[%clk 0:00:15]} 58. Nf3 {[%clk 0:00:14]}  Kf4 {[%clk 0:00:15]} 59. g3+ {[%clk 0:00:13]}  Ke4 {[%clk 0:00:08]} 60. Ng5+ {[%clk 0:00:12]}  Kf5 {[%clk 0:00:08]} 61. Kg2 {[%clk 0:00:10]}  Ra3 {[%clk 0:00:08]} 62. Kf2 {[%clk 0:00:10]}  Kg4 {[%clk 0:00:08]} 63. Ne4 {[%clk 0:00:09]}  Rf3+ {[%clk 0:00:08]} 64. Kg2 {[%clk 0:00:09]}  Re3 {[%clk 0:00:08]} 65. Nf6+ {[%clk 0:00:09]}  Kf5 {[%clk 0:00:08]} 66. Nh7 {[%clk 0:00:09]}  Re4 {[%clk 0:00:07]} 67. Ng5 {[%clk 0:00:08]}  Rg4 {[%clk 0:00:08]} 68. Kf3 {[%clk 0:00:08]}  Rxg5 {[%clk 0:00:08]} 69. hxg5 {[%clk 0:00:08]}  Kxg5 {[%clk 0:00:08]} 70. Kf2 {[%clk 0:00:08]}  Kg4 {[%clk 0:00:09]} 71. Kg2 {[%clk 0:00:08]}  g5 {[%clk 0:00:09]} 72. Kf2 {[%clk 0:00:08]}  Kh3 {[%clk 0:00:09]} 73. Kf3 {[%clk 0:00:08]}  g4+ {[%clk 0:00:10]} 74. Kf4 {[%clk 0:00:08]}  Kg2 {[%clk 0:00:10]} 75. Kg5 {[%clk 0:00:07]}  Kxg3 {[%clk 0:00:11]} 76. Kxh5 {[%clk 0:00:07]}  Kf3 {[%clk 0:00:12]} 77. Kh4 {[%clk 0:00:08]}  g3 {[%clk 0:00:12]} 78. Kh3 {[%clk 0:00:08]}  Kf2 {[%clk 0:00:12]} 0-1


[Site "https://www.chess.com"]

[Event "Titled Tuesday Blitz August 22 Late 2023"]
[White "Grossboss19"]
[Black "Buker, Muhittin"]
[BlackFideId "6301770"]
[WhiteElo "2530"]
[BlackElo "1984"]
[Result "1-0"]
[Round "1"]
[TimeControl "180+1"]
[Date "2023.08.22"]
[WhiteClock "0:00:55"]
[BlackClock "0:00:05"]
[Board "216"]

1. e4 {[%clk 0:02:59]}  e5 {[%clk 0:02:58]} 2. Nf3 {[%clk 0:02:59]}  Nc6 {[%clk 0:02:58]} 3. Bb5 {[%clk 0:02:59]}  a6 {[%clk 0:02:57]} 4. Ba4 {[%clk 0:02:59]}  Nf6 {[%clk 0:02:56]} 5. d3 {[%clk 0:02:57]}  Bc5 {[%clk 0:02:55]} 6. O-O {[%clk 0:02:57]}  b5 {[%clk 0:02:55]} 7. Bb3 {[%clk 0:02:57]}  d6 {[%clk 0:02:55]} 8. c3 {[%clk 0:02:58]}  h6 {[%clk 0:02:54]} 9. a4 {[%clk 0:02:58]}  Rb8 {[%clk 0:02:52]} 10. h3 {[%clk 0:02:52]}  O-O {[%clk 0:02:49]} 11. Nbd2 {[%clk 0:02:50]}  b4 {[%clk 0:02:39]} 12. Bc2 {[%clk 0:02:47]}  Ba7 {[%clk 0:02:34]} 13. Nc4 {[%clk 0:02:44]}  Be6 {[%clk 0:02:29]} 14. Ne3 {[%clk 0:02:39]}  Qc8 {[%clk 0:02:26]} 15. Kh2 {[%clk 0:02:30]}  Nh7 {[%clk 0:02:13]} 16. Nd5 {[%clk 0:02:28]}  f5 {[%clk 0:02:08]} 17. c4 {[%clk 0:02:21]}  f4 {[%clk 0:02:06]} 18. b3 {[%clk 0:02:01]}  Nd4 {[%clk 0:02:04]} 19. Ne7+ {[%clk 0:02:00]}  Kh8 {[%clk 0:02:02]} 20. Nxc8 {[%clk 0:02:00]}  Rbxc8 {[%clk 0:02:01]} 21. Nxd4 {[%clk 0:01:57]}  Bxd4 {[%clk 0:02:00]} 22. Ra2 {[%clk 0:01:57]}  g5 {[%clk 0:01:56]} 23. f3 {[%clk 0:01:56]}  h5 {[%clk 0:01:53]} 24. Bd2 {[%clk 0:01:56]}  a5 {[%clk 0:01:51]} 25. Be1 {[%clk 0:01:56]}  g4 {[%clk 0:01:51]} 26. fxg4 {[%clk 0:01:54]}  hxg4 {[%clk 0:01:51]} 27. hxg4 {[%clk 0:01:54]}  Kg7 {[%clk 0:01:49]} 28. Bf2 {[%clk 0:01:54]}  Bc3 {[%clk 0:01:43]} 29. Rh1 {[%clk 0:01:48]}  Ng5 {[%clk 0:01:40]} 30. d4 {[%clk 0:01:46]}  f3 {[%clk 0:01:30]} 31. Qc1 {[%clk 0:01:37]}  Kg6 {[%clk 0:01:15]} 32. Bh4 {[%clk 0:01:29]}  Nh7 {[%clk 0:01:08]} 33. d5 {[%clk 0:01:28]}  Bxg4 {[%clk 0:01:07]} 34. Bd1 {[%clk 0:01:21]}  Bd4 {[%clk 0:01:01]} 35. gxf3 {[%clk 0:01:16]}  Bxf3 {[%clk 0:00:56]} 36. Bxf3 {[%clk 0:01:16]}  Rxf3 {[%clk 0:00:55]} 37. Rg2+ {[%clk 0:01:17]}  Kh5 {[%clk 0:00:39]} 38. Rg7 {[%clk 0:01:00]}  Be3 {[%clk 0:00:31]} 39. Qd1 {[%clk 0:00:56]}  Rf8 {[%clk 0:00:24]} 40. Rf1 {[%clk 0:00:56]}  Kh6 {[%clk 0:00:13]} 41. Rxf3 {[%clk 0:00:56]}  Kxg7 {[%clk 0:00:05]} 42. Rxe3 {[%clk 0:00:55]} 1-0


[Site "https://www.chess.com"]